Cogmind - Beta 10.1 @@@ ROGUE MODE // 2020.09.23 @ 14:17:36 Player: Finestep Result: Self-destructed Performance ------------- Evolutions (3) 1500 Regions Visited (10) 2000 Robots Destroyed (224) 1120 Value Destroyed (5478) 5478 Prototype IDs (31) 620 Alien Tech Used (0) 0 Bonus (-104) -104 TOTAL SCORE: 10614 Bonus ------- High Alert Combat Kills 147 Follower Combat Kills 191 Aligned with FarCom 300 Friendly Fire -742 Cogmind --------- Core Integrity 415/700 Matter 87/300 Energy 100/100 System Corruption 3% Temperature Cool (9) Movement Walking (570) Ox15 Location -7/Lower Caves Parts ------- > --- POWER (1) -------- (None) > --- PROPULSION (3) --- Aluminum Leg > --- UTILITY (6) ------ High-capacity Storage Unit High-capacity Storage Unit Humpback Enhanced Optical Array > --- WEAPON (3) ------- Flak Gun Flak Gun > --- INVENTORY (40) --- High-capacity Storage Unit High-capacity Matter Pod (0) Improved Propulsion Shielding Heavy Armor Plating Heavy Armor Plating Medium Reflective Plating Gauss Rifle Flak Gun Advanced Assault Cannon Heavy Missile Launcher Heavy Missile Launcher Katana Dirty Bomb Trap Dirty Bomb Trap Dirty Bomb Trap Dirty Bomb Trap Dirty Bomb Trap Dirty Bomb Trap Fire Trap Fire Trap Fire Trap Fire Trap Fire Trap Peak State ------------ > --- POWER ------------ Cold Fusion Reactor > --- PROPULSION ------- Light Treads Light Treads Armored Treads > --- UTILITY ---------- Improved Heat Sink High-capacity Storage Unit High-capacity Storage Unit Humpback Experimental Targeting Computer > --- WEAPON ----------- YOLO Cannon Advanced Assault Cannon > --- INVENTORY -------- Advanced Treads Combat Antigrav System Experimental Heat Sink High-capacity Storage Unit Humpback High-capacity Matter Pod Enhanced Optical Array Improved Armor Integrity Analyzer Advanced Weapon Cycler Heavy Armor Plating Heavy Armor Plating Army-in-a-Box EM Pulse Cannon EM Pulse Cannon Gauss Rifle Flak Gun Flak Gun Flak Gun Flak Gun XL Autogun Array Advanced Assault Cannon Heavy Missile Launcher Heavy Missile Launcher Heavy Missile Launcher Katana Dirty Bomb Trap Dirty Bomb Trap Deploy-a-Sentry [Rating: 68] Favorites ----------- Power Cold Fusion Reactor Engine Heavy Ion Engine Power Core Light Nuclear Core Reactor Cold Fusion Reactor Propulsion Light Treads Treads Light Treads Leg Aluminum Leg Wheel Wheel Hover Unit Aerolev Unit Utility High-capacity Storage Unit Device Improved Heat Sink Storage High-capacity Storage Unit Processor Experimental Targeting Computer Protection Improved Light Armor Plating Weapon Improved Assault Rifle Energy Gun Medium Laser Energy Cannon YOLO Cannon Ballistic Gun Improved Assault Rifle Ballistic Cannon Advanced Assault Cannon Launcher Heavy Missile Launcher Slashing Weapon Axe Special Melee Weapon Datajack Build | -11 -10 -10 -9 -9 -9 -8 -8 -7 -7 -7 ------- Run | Scr Mat Min Mat Min Exi Min Mat Fac Low Low Slots Evolved 6 | . . . 2 . . . 2 2 . . Power . | . . . . . . . . . . . Propulsion 1 | . . . 1 . . . . . . . Utility 4 | . . . 1 . . . 1 2 . . Weapon 1 | . . . . . . . 1 . . . Parts Attached 162 | 6 10 3 36 . 26 6 25 14 15 21 Power 11 | 1 1 1 2 . 3 . 1 2 . . Engine 8 | 1 1 1 2 . 2 . . 1 . . Core 1 | . . . . . . . 1 . . . Reactor 2 | . . . . . 1 . . 1 . . Propulsion 43 | 2 . 1 13 . 2 5 10 3 1 6 Treads 39 | 2 . 1 13 . 2 3 9 3 1 5 Leg 1 | . . . . . . . . . . 1 Wheel 2 | . . . . . . 2 . . . . Hover 1 | . . . . . . . 1 . . . Flight . | . . . . . . . . . . . Utility 36 | 1 7 . 5 . 11 . 4 6 . 2 Device 5 | . . . 1 . 3 . . 1 . . Storage 22 | 1 7 . 4 . 4 . 3 2 . 1 Processor 2 | . . . . . . . . 1 . 1 Hackware . | . . . . . . . . . . . Protection 7 | . . . . . 4 . 1 2 . . Artifact . | . . . . . . . . . . . Weapon 72 | 2 2 1 16 . 10 1 10 3 14 13 Energy Gun 2 | 1 1 . . . . . . . . . Energy Cannon 13 | . . . . . 2 . 1 . 7 3 Ballistic Gun 42 | 1 1 1 13 . 6 1 6 2 5 6 Ballistic Cannon 2 | . . . . . . . . 1 1 . Launcher 9 | . . . 1 . 1 . 2 . 1 4 Special Weapon . | . . . . . . . . . . . Impact Weapon . | . . . . . . . . . . . Slashing Weapon 3 | . . . 1 . 1 . 1 . . . Piercing Weapon . | . . . . . . . . . . . Special Melee Weapon 1 | . . . 1 . . . . . . . Unidentified Prototypes 6 | . . . . . 4 . 1 1 . . Parts Lost 29 | . 2 3 4 . 1 4 . 3 . 12 Power 5 | . 1 1 . . . . . 2 . 1 Propulsion 12 | . . 1 2 . 1 3 . 1 . 4 Utility 3 | . . . . . . . . . . 3 Weapon 9 | . 1 1 2 . . 1 . . . 4 Highest Loss Streak 4 | . 1 2 3 . 1 4 . 1 . 4 Average Slot Usage (%) 89 | . 97 99 99 100 95 87 89 90 86 71 Engine 6 | . 13 14 11 11 10 11 5 1 . . Reactor 1 | . . . . . . . . . 7 6 Treads 24 | . 28 27 32 33 32 29 21 22 23 7 Device 1 | . . . . . 1 . . . 7 4 Storage 24 | . 26 28 32 33 21 22 25 23 23 22 Processor 2 | . . . . . . . . 7 7 7 Protection 1 | . . . . . 7 . 1 5 . . Energy Cannon 1 | . . . . . . . . . 6 3 Ballistic Gun 19 | . 19 28 21 22 20 22 26 20 4 14 Naked Turns . | . . . . . . . . . . . Heaviest Build 207 | 9 39 40 62 62 130 130 167 207 182 179 Greatest Support 62 | 40 40 40 60 60 60 60 60 60 60 62 Greatest Overweight (x) 25 | . . 1 1 1 2 12 6 4 3 25 Average Overweight (x) 2 | . . . . 1 . 3 3 2 2 7 Largest Inventory Capacity 52 | 6 16 16 22 22 32 32 44 52 40 40 Average Capacity 29 | 5 11 16 21 22 21 32 38 40 40 39 Most Carried 42 | 4 15 16 22 22 32 32 40 42 40 40 Average Carried 27 | 3 10 14 21 22 20 31 35 39 39 35 Final Capacity 40 | 6 16 16 22 22 32 32 40 40 40 40 Final Carried 40 | 4 15 16 22 22 32 32 40 40 40 25 Class Distribution -------------------- 41% | Hauler-Mutant 28% | Hauler-Gunner 20% | Mutant 5% | Scavenger-Mutant Dominant Class ---------------- Mutant | -10/Materials Mutant | -10/Mines Hauler-Mutant | -9/Materials Hauler-Mutant | -9/Mines Hauler-Mutant | -9/Exiles Hauler-Mutant | -8/Mines Hauler-Gunner | -8/Materials Hauler-Gunner | -7/Factory Hauler-Mutant | -7/Lower Caves Hauler-Mutant | -7/Lower Caves Resources | -11 -10 -10 -9 -9 -9 -8 -8 -7 -7 -7 ----------- Run | Scr Mat Min Mat Min Exi Min Mat Fac Low Low Matter Collected 5961 | 272 400 102 950 82 775 370 1086 596 326 1002 Remotely . | . . . . . . . . . . . Salvage Created 8079 | 99 896 239 1611 77 431 804 2240 746 251 685 Parts 484 | 5 58 7 113 12 52 42 93 34 24 44 Haulers Intercepted 14 | . 2 . 5 . . . 6 1 . . Recyclers Shooed 5 | . 1 2 . . . . 1 1 . . Parts Field Recycled . | . . . . . . . . . . . Retrieved Matter . | . . . . . . . . . . . Parts Self-Destructed 39 | . . . . . . . . . 9 30 Prevented 6 | . . . . . . . . . 4 2 Kills | -11 -10 -10 -9 -9 -9 -8 -8 -7 -7 -7 ------- Run | Scr Mat Min Mat Min Exi Min Mat Fac Low Low Combat Hostiles Destroyed 133 | . 12 4 26 4 2 13 30 12 8 22 Guns 99 | . 12 4 25 4 1 13 26 9 . 5 Cannons 11 | . . . . . . . . 3 5 3 AOE 22 | . . . 1 . 1 . 4 . 2 14 Classes Destroyed 22 | 3 5 . 2 . 3 2 2 1 3 1 Worker 15 | 1 2 . 6 . . 1 4 1 . . Builder 4 | . 1 . . . . 1 2 . . . Tunneler 7 | 1 . . 2 1 . 2 1 . . . Hauler 14 | . 2 . 5 . . . 6 1 . . Recycler 18 | 1 5 1 2 . . 2 5 2 . . Minesweeper 3 | . . . . . . . . . 1 2 Mechanic 1 | . . . . . . . 1 . . . Operator 4 | . . . 3 . . . . 1 . . Turret 1 | . . . . . 1 . . . . . Watcher 8 | . 2 . 1 . . . 4 1 . . Swarmer 36 | . 6 . 6 4 . . 9 4 . 7 Grunt 59 | . 6 4 13 . . 9 12 2 1 12 Brawler 1 | . . . . . . . 1 . . . Duelist 4 | . . . . . . 3 . 1 . . Sentry 18 | . . . 7 . . . 7 4 . . Specialist 1 | . . . . . . . . . 1 . Hunter 4 | . . . . . . 1 1 . 2 . Programmer 2 | . . . . . . . . 1 1 . Behemoth 1 | . . . . . . . . . . 1 Zionite 8 | . . . . . 8 . . . . . Master Thief 5 | . . . . . . . . . 3 2 Assembled 6 | . . . . . 6 . . . . . Best Kill Streak 8 | 2 4 2 8 4 4 5 8 6 2 4 Combat Bots Only 7 | . 3 2 5 4 1 3 7 4 2 4 Max Kills in Single Turn 5 | 1 1 1 3 1 5 1 3 2 2 4 Gunslinging 2 | . . . . . . . 2 . . . Exploded 4 | . . . 1 . 1 . 2 . 1 4 Melee . | . . . . . . . . . . . Uniques/NPCs Destroyed 2 | . . . . . 2 . . . . . 8R-AWN (-9/Exiles) EX-DEC (-9/Exiles) EX-HEX (-9/Exiles) EX-BIN (-9/Exiles) Combat | -11 -10 -10 -9 -9 -9 -8 -8 -7 -7 -7 -------- Run | Scr Mat Min Mat Min Exi Min Mat Fac Low Low Damage Taken 7632 | . 500 314 1110 60 266 1091 967 1051 367 1906 Core 845 | . 101 54 115 9 . 65 216 43 6 236 Absorbed by Shields . | . . . . . . . . . . . Core Remaining (%) 62 | 100 . 38 . . . 52 60 . . . Volleys Fired 619 | 12 75 22 130 9 76 55 93 49 24 74 Largest 3 | 2 2 2 2 2 2 2 3 3 3 3 Hottest 174 | 60 70 40 46 46 100 56 84 94 174 126 Shots Fired 1371 | 24 149 43 256 18 145 110 261 142 51 172 Gun 1278 | 24 149 43 254 18 138 110 252 127 16 147 Cannon 74 | . . . . . 5 . 6 15 33 15 Launcher 19 | . . . 2 . 2 . 3 . 2 10 Special . | . . . . . . . . . . . Kinetic 1248 | 12 95 43 254 18 138 110 252 142 37 147 Thermal 83 | 12 54 . . . 5 . . . 6 6 Explosive 19 | . . . 2 . 2 . 3 . 2 10 Electromagnetic 21 | . . . . . . . 6 . 6 9 Robot Hit Streak 42 | 5 18 13 15 10 16 22 21 42 14 24 Robot Miss Streak 17 | 2 4 2 3 1 1 2 3 2 2 17 Penetration Max 1 | . . . . . . . 1 1 . . Secondary Targets 9 | . 2 . . . . 1 6 . . . Max Gunslinging Chain 2 | . 1 . . . . 1 2 . . . Shots Hit Robots 997 | 16 99 33 167 12 112 85 185 108 31 149 Core Hits 421 | 4 42 12 72 5 44 35 80 36 15 76 Critical Hits 16 | . 1 1 3 . 1 . 5 3 1 1 Critical Kills 7 | . . . 2 . . . 3 1 1 . Critical Parts Destroyed 9 | . 1 1 1 . 1 . 2 2 . 1 Melee Attacks 8 | . . . 1 . 6 . 1 . . . Impact . | . . . . . . . . . . . Slashing 8 | . . . 1 . 6 . 1 . . . Piercing . | . . . . . . . . . . . Sneak Attacks . | . . . . . . . . . . . Combat Hostiles . | . . . . . . . . . . . Follow-up Attacks . | . . . . . . . . . . . Damage Inflicted 18829 | 145 1019 337 2448 153 2132 1615 3950 2056 1135 3839 Guns 13793 | 145 1019 337 2249 153 1603 1615 3372 1714 154 1432 Cannons 1960 | . . . . . . . 130 341 809 680 Explosions 3071 | . . . 195 . 529 . 448 . 172 1727 Melee . | . . . . . . . . . . . Ramming 5 | . . . 4 . . . . 1 . . Kinetic 13901 | 55 462 337 2249 153 1603 1615 3372 2055 568 1432 Thermal 2377 | 90 557 . . . 210 . 77 . 355 1088 Explosive 2104 | . . . 195 . 319 . 371 . 52 1167 Electromagnetic 442 | . . . . . . . 130 . 160 152 Impact . | . . . . . . . . . . . Slashing . | . . . . . . . . . . . Piercing . | . . . . . . . . . . . Highest Corruption 3 | . 1 1 . . . . . 2 3 3 Average Corruption 2 | . 1 1 . . . . . 1 2 3 Corruption Purged . | . . . . . . . . . . . Effects 83 | . 4 3 . . . . . 13 13 50 Message Errors 20 | . . 3 . . . . . 3 3 11 Matter Fused 17 | . . . . . . . . . 2 15 Heat Flow Errors 11 | . . . . . . . . 1 2 8 Energy Discharges 12 | . 3 . . . . . . 1 3 5 Data Loss (minor) 11 | . 1 . . . . . . 4 . 6 Targeting Errors 10 | . . . . . . . . 3 3 4 Weapon Failures 2 | . . . . . . . . 1 . 1 Overload Shots . | . . . . . . . . . . . Overflow Damage 277 | . . . 37 . 55 . 25 . 37 123 Projectiles 33 | . . . . . . . . . 31 2 Explosions 244 | . . . 37 . 55 . 25 . 6 121 Melee . | . . . . . . . . . . . Knockbacks 12 | . . . . . . . . 5 7 . Impact . | . . . . . . . . . . . Kinetic 12 | . . . . . . . . 5 7 . Secondary . | . . . . . . . . . . . Self-Inflicted Damage 376 | . . . 13 . 72 . . . 161 130 Shots 9 | . . . 1 . 1 . . . 3 4 Rammed 3 | . 1 . 1 . . . . 1 . . Targets Rammed 3 | . 1 . 1 . . . . 1 . . Kicked . | . . . . . . . . . . . Crushed . | . . . . . . . . . . . Highest Temperature 284 | 40 222 24 6 . 180 27 72 284 104 212 Average Temperature 40 | 18 62 9 3 . 52 11 23 50 43 83 Received Heat Transfer 2250 | . 159 174 429 . . 351 315 267 . 555 Siege Activations . | . . . . . . . . . . . Robots Corrupted 1 | . . . . . . . . . 1 . Combat Hostiles 1 | . . . . . . . . . 1 . Parts Fried 3 | . . . . . . . 1 . 2 . Impact Corruptions . | . . . . . . . . . . . Robots Melted . | . . . . . . . . . . . Combat Hostiles . | . . . . . . . . . . . Parts Melted 5 | . 4 . . . . . . . . 1 Heat Transferred 3408 | 200 1508 . . . 320 . 100 . 320 960 Parts Sabotaged . | . . . . . . . . . . . Parts Stolen 16 | . . . . . . . . . 2 14 Parts Stripped . | . . . . . . . . . . . Power Chain Reactions 1 | . . . . . . . 1 . . . Missiles Intercepted . | . . . . . . . . . . . Alert | -11 -10 -10 -9 -9 -9 -8 -8 -7 -7 -7 ------- Run | Scr Mat Min Mat Min Exi Min Mat Fac Low Low Peak Influence 694 | 15 169 224 441 272 . 166 499 694 . . Initial 168 | . 9 38 . 162 . . 64 168 . . Average 204 | 3 72 101 183 228 . 76 282 417 . . Maximum Alert Level 2 | . . 1 2 1 . . 2 2 . . Low Security (%) 62 | 100 100 81 72 36 . 100 23 25 . . Level 1 23 | . . 18 18 63 . . 59 21 . . Level 2 14 | . . . 8 . . . 17 52 . . Level 3 . | . . . . . . . . . . . Level 4 . | . . . . . . . . . . . Level 5 . | . . . . . . . . . . . High Security . | . . . . . . . . . . . Max Security . | . . . . . . . . . . . Squads Dispatched 13 | . 1 . 6 . . . 2 4 . . Investigation 3 | . . . 1 . . . . 2 . . Extermination 1 | . . . . . . . . 1 . . Reinforcement 8 | . 1 . 5 . . . 2 . . . Assault 1 | . . . . . . . . 1 . . Garrison . | . . . . . . . . . . . Intercept . | . . . . . . . . . . . Construction Impeded . | . . . . . . . . . . . Haulers Reinforced . | . . . . . . . . . . . Stealth | -11 -10 -10 -9 -9 -9 -8 -8 -7 -7 -7 --------- Run | Scr Mat Min Mat Min Exi Min Mat Fac Low Low Distress Signals 6 | . 1 . 1 . . . 4 . . . Communications Jammed . | . . . . . . . . . . . Distress Signals . | . . . . . . . . . . . Times Spotted 245 | . 25 10 58 4 21 19 45 18 8 37 Peak Tracking Total 8 | . 4 2 6 4 8 4 6 5 2 4 Tactical Retreats 21 | . . 1 4 . 8 5 2 1 . . Traps | -11 -10 -10 -9 -9 -9 -8 -8 -7 -7 -7 ------- Run | Scr Mat Min Mat Min Exi Min Mat Fac Low Low Traps Triggered 2 | . 1 . . . . . . 1 . . Indirectly . | . . . . . . . . . . . Trap Hack Attempts 31 | . . . 31 . . . . . . . Triggered . | . . . . . . . . . . . Disarmed 1 | . . . 1 . . . . . . . Reprogrammed 3 | . . . 3 . . . . . . . Reused 3 | . . . . . 2 . . . . 1 Traps Extracted 3 | . . . 3 . . . . . . . Installed 5 | . . . . . 3 . . . 1 1 Triggered 4 | . . . . . . . . . 2 2 Machines | -11 -10 -10 -9 -9 -9 -8 -8 -7 -7 -7 ---------- Run | Scr Mat Min Mat Min Exi Min Mat Fac Low Low Machines Disabled 16 | . . . 1 . 8 . 5 1 1 . Max in Single Turn 2 | . . . 1 . 2 . 2 1 1 . Garrison Access 1 | . . . . . . . 1 . . . Machines Sabotaged . | . . . . . . . . . . . Garrisons Compromised . | . . . . . . . . . . . Overloaded Fab Kills . | . . . . . . . . . . . Fab Network Shutdowns 1 | . . . . . . . . 1 . . Hacking | -11 -10 -10 -9 -9 -9 -8 -8 -7 -7 -7 --------- Run | Scr Mat Min Mat Min Exi Min Mat Fac Low Low Machines Accessed 27 | . 6 1 5 . 2 . 9 4 . . Terminals 17 | . 6 . 3 . . . 6 2 . . Fabricators 1 | . . . . . . . . 1 . . Repair Stations 1 | . . . 1 . . . . . . . Recycling Units 1 | . . . 1 . . . . . . . Scanalyzers 3 | . . . . . . . 2 1 . . Garrison Access 1 | . . . . . . . 1 . . . Total Hacks 86 | . 21 1 12 . 5 . 30 17 . . Successful 45 | . 11 1 6 . 5 . 13 9 . . Failed 41 | . 10 . 6 . . . 17 8 . . Catastrophic 7 | . 3 . 1 . . . 3 . . . Database Lockouts . | . . . . . . . . . . . Manual 40 | . 16 . 5 . 1 . 14 4 . . Terminals 63 | . 21 . 8 . . . 25 9 . . Fabricators 4 | . . . . . . . . 4 . . Repair Stations 2 | . . . 2 . . . . . . . Recycling Units 2 | . . . 2 . . . . . . . Scanalyzers 8 | . . . . . . . 4 4 . . Garrison Access 1 | . . . . . . . 1 . . . Terminal Hacks 29 | . 10 1 2 . 5 . 9 2 . . Record 4 | . . . . . 4 . . . . . Part Schematic 2 | . 2 . . . . . . . . . Robot Schematic 1 | . 1 . . . . . . . . . Robot Analysis 3 | . 3 . . . . . . . . . Prototype ID Bank 1 | . 1 . . . . . . . . . Open Door 1 | . . 1 . . . . . . . . Branch Access Points 3 | . . . 1 . . . 1 1 . . Terminal Index 1 | . . . . . . . 1 . . . Alert Level 1 | . . . . . . . 1 . . . Unreport Threat 4 | . 1 . . . . . 2 1 . . Locate Traps 4 | . 1 . . . . . 3 . . . Zone Layout 3 | . 1 . 1 . . . 1 . . . EX-Prototype ID Bank 1 | . . . . . 1 . . . . . Fabricator Hacks 3 | . . . . . . . . 3 . . Load Schematic 1 | . . . . . . . . 1 . . Build 2 | . . . . . . . . 2 . . Repair Station Hacks 2 | . . . 2 . . . . . . . Scan Component 1 | . . . 1 . . . . . . . Repair 1 | . . . 1 . . . . . . . Recycling Unit Hacks 1 | . . . 1 . . . . . . . Retrieve Components 1 | . . . 1 . . . . . . . Scanalyzer 5 | . . . . . . . 2 3 . . Insert Component 2 | . . . . . . . 1 1 . . Analyze 3 | . . . . . . . 1 2 . . Garrison Access Hacks 1 | . . . . . . . 1 . . . Seal Access 1 | . . . . . . . 1 . . . Unauthorized Hacks 4 | . 1 . 1 . . . 1 1 . . Terminals 3 | . 1 . . . . . 1 1 . . Track 1 | . . . . . . . 1 . . . Botnet 2 | . 1 . . . . . . 1 . . Fabricators . | . . . . . . . . . . . Repair Stations . | . . . . . . . . . . . Recycling Units 1 | . . . 1 . . . . . . . Tunnel 1 | . . . 1 . . . . . . . Scanalyzers . | . . . . . . . . . . . Garrison Access . | . . . . . . . . . . . Data Cores Recovered . | . . . . . . . . . . . Used . | . . . . . . . . . . . Hacking Detections 22 | . 5 . 5 . . . 8 4 . . Full Trace Events 4 | . . . 1 . . . 1 2 . . Feedback Events 1 | . . . . . . . . 1 . . Corruption 1 | . . . . . . . . 1 . . Feedback Blocked . | . . . . . . . . . . . Robot Schematics Acquired 1 | . 1 . . . . . . . . . Robots Built . | . . . . . . . . . . . Matter . | . . . . . . . . . . . Time . | . . . . . . . . . . . Total Robot Build Rating . | . . . . . . . . . . . Part Schematics Acquired 4 | . 2 . . . . . 1 1 . . Parts Built 2 | . . . . . . . . 2 . . Matter 204 | . . . . . . . . 204 . . Time 50 | . . . . . . . . 50 . . Total Part Build Rating 2 | . . . . . . . . 2 . . Parts Repaired 1 | . . . 1 . . . . . . . Time 26 | . . . 26 . . . . . . . Parts Recycled . | . . . . . . . . . . . Recycled Matter . | . . . . . . . . . . . Retrieved Matter . | . . . . . . . . . . . Retrieved Components 1 | . . . 1 . . . . . . . Parts Scanalyzed 2 | . . . . . . . 1 1 . . Part Schematics Acquired 2 | . . . . . . . 1 1 . . Parts Damaged . | . . . . . . . . . . . Bothacking | -11 -10 -10 -9 -9 -9 -8 -8 -7 -7 -7 ------------ Run | Scr Mat Min Mat Min Exi Min Mat Fac Low Low Used RIF Installer . | . . . . . . . . . . . Robots Hacked . | . . . . . . . . . . . Non-combat . | . . . . . . . . . . . Combat . | . . . . . . . . . . . Robot Hacks Applied . | . . . . . . . . . . . Relay Couplers Released . | . . . . . . . . . . . Robots Rewired . | . . . . . . . . . . . Allies Hacked . | . . . . . . . . . . . Hacks Repelled . | . . . . . . . . . . . Allies | -11 -10 -10 -9 -9 -9 -8 -8 -7 -7 -7 -------- Run | Scr Mat Min Mat Min Exi Min Mat Fac Low Low Total Allies 3 | . . 3 . . . . . . . . Largest Group 3 | . . 3 2 . . . . . . . Highest-Rated Group 40 | . . 40 24 . . . . . . . Highest-Rated Ally 16 | . . 16 16 . . . . . . . Total Orders 2 | . . 2 . . . . . . . . STAY 1 | . . 1 . . . . . . . . FOLLOW 1 | . . 1 . . . . . . . . Ally Attacks 58 | . . 44 14 . . . . . . . Total Damage 537 | . . 424 113 . . . . . . . Kills 11 | . . 7 4 . . . . . . . Allies Corrupted . | . . . . . . . . . . . Allies Melted . | . . . . . . . . . . . Intel | -11 -10 -10 -9 -9 -9 -8 -8 -7 -7 -7 ------- Run | Scr Mat Min Mat Min Exi Min Mat Fac Low Low Robot Analysis Total 3 | . 3 . . . . . . . . . Derelict Logs Recovered 1 | . . . . . . . . . 1 . Drone Launches . | . . . . . . . . . . . Drone Recoveries . | . . . . . . . . . . . Exploration | -11 -10 -10 -9 -9 -9 -8 -8 -7 -7 -7 ------------- Run | Scr Mat Min Mat Min Exi Min Mat Fac Low Low Turns Passed 16124 | 167 1499 822 2158 204 2841 706 1814 1445 1442 3026 Spaces Moved 6810 | 79 770 466 901 99 1404 273 790 574 616 838 Core 6 | 4 . . . . . . . . . 2 Treads 6436 | 75 770 466 901 99 1404 220 528 574 616 783 Legs 53 | . . . . . . . . . . 53 Wheels 315 | . . . . . . 53 262 . . . Hover . | . . . . . . . . . . . Flight . | . . . . . . . . . . . Fastest Speed 50 | 50 160 160 160 180 160 130 120 200 200 198 Average Speed 197 | 154 160 160 169 180 177 193 180 201 211 323 Slowest Speed 1300 | 160 160 180 180 180 200 220 220 240 223 1300 Overloaded Moves . | . . . . . . . . . . . Propulsion Burnouts . | . . . . . . . . . . . Robots Hopped . | . . . . . . . . . . . Cave-ins Triggered . | . . . . . . . . . . . Exploration Rate (%) 60 | 6 98 90 63 26 89 48 60 16 87 86 Regions Visited 10 Branch Regions 6 Pre-discovered Areas 2 | . . . 1 . 1 . . . . . Known Exits Taken 2 | . . . 1 . . . . 1 . . Unknown Exits Taken 8 | 1 1 1 . 1 1 1 1 . 1 . Scrap Searched 7 | . . 1 . 1 . 2 . . 1 2 Spaces Dug 67 | . . . 1 . . . 7 . 44 15 Terrain Destroyed 328 | . . . 25 . 24 2 66 2 117 92 Melee 2 | . . . 1 . . . 1 . . . Projectile 19 | . . . . . 1 2 8 2 4 2 AOE 307 | . . . 24 . 23 . 57 . 113 90 Terrain Rammed . | . . . . . . . . . . . Walls Destroyed . | . . . . . . . . . . . Machines Disabled . | . . . . . . . . . . . Actions | -11 -10 -10 -9 -9 -9 -8 -8 -7 -7 -7 --------- Run | Scr Mat Min Mat Min Exi Min Mat Fac Low Low Total 8343 | 100 911 504 1311 107 1630 341 977 753 704 1005 Wait 341 | . 24 10 127 . 11 5 29 77 19 39 Move 6800 | 78 769 465 900 98 1403 272 789 573 615 838 Hop . | . . . . . . . . . . . Pick Up 204 | 4 19 4 38 . 48 2 23 27 16 23 Fast Attach 43 | 6 3 . 5 . 15 3 6 3 1 1 Attach 51 | . 2 3 7 . 2 3 4 9 8 13 Detach 9 | . . . 1 . 1 1 . . 2 4 Swap 68 | . 5 . 24 . 9 . 15 2 6 7 Drop 159 | . 13 . 46 . 56 . 17 10 12 5 Fire 619 | 12 75 22 130 9 76 55 93 49 24 74 Melee 8 | . . . 1 . 6 . 1 . . . Ram . | . . . . . . . . . . . Kick . | . . . . . . . . . . . Crush 3 | . 1 . 1 . . . . 1 . . Escape Stasis 2 | . . . . . . . . 2 . . Rewire . | . . . . . . . . . . . Trap 36 | . . . 31 . 3 . . . 1 1 Miscellaneous . | . . . . . . . . . . . Route ------- -11/Scrapyard -10/Materials (discovered 5 exits: *Mat x3 / *Min x2) -10/Mines (discovered 2 exits: *Mat x2) -9/Materials (discovered 2 exits: *Mat / *Min) -9/Mines -9/Exiles -8/Mines (discovered 2 exits: *Mat x2) -8/Materials (discovered 3 exits: *Fac x2 / Sto) -7/Factory (discovered 2 exits: *Low x2) -7/Lower Caves -7/Lower Caves History --------- Turn | Location | Event 8 | -11/Scrapyard | Discovered new exit (range 14) 168 | -11/Scrapyard | Entered Materials 307 | -10/Materials | Build established: Mutant 530 | -10/Materials | Discovered new exit (range 10) 646 | -10/Materials | Discovered new exit (range 15) 1200 | -10/Materials | Discovered new exit (range 6) 1331 | -10/Materials | Discovered new exit (range 5) 1573 | -10/Materials | Discovered new exit (range 15) 1667 | -10/Materials | Entered Mines 1704 | -10/Mines | Core integrity fell below 50% 1756 | -10/Mines | Assisted by bots powering up and referring to "LRC-V3" 1779 | -10/Mines | A weapon hastily lodged in a ceiling crevice suddenly fell to the ground 2349 | -10/Mines | Discovered new exit (range 4) 2431 | -10/Mines | Discovered new exit (range 10) 2462 | -10/Mines | Met a Derelict who couldn't figure out how to use a Trap Extractor 2489 | -10/Mines | Entered Materials 2489 | -9/Materials | Accompanied by 2 allies 2489 | -9/Materials | Evolved 2 slots: Propulsion x1, Utility x1 2808 | -9/Materials | Build established: Hauler-Mutant 2976 | -9/Materials | Lost 3 parts (1n2w) 3140 | -9/Materials | Repaired Lgt. Treads 3232 | -9/Materials | Identified exit to Mines 3331 | -9/Materials | Discovered new exit (range 10) 4647 | -9/Materials | Entered Mines 4793 | -9/Mines | Deemed a non-threat by the Exiles lab entrance 4793 | -9/Mines | Discovered new exit (range 5) 4823 | -9/Mines | Assembled infested the area 4851 | -9/Mines | Entered Exiles 4983 | -9/Exiles | Met 8R-AWN 5016 | -9/Exiles | Met EX-HEX 5107 | -9/Exiles | Met EX-DEC 5250 | -9/Exiles | Learned location of Zion (-6) 5282 | -9/Exiles | Met EX-BIN 5309 | -9/Exiles | Aligned with FarCom system 5311 | -9/Exiles | Given EX-Vault access code 5352 | -9/Exiles | Opened EX-Vault 5363 | -9/Exiles | Found YOLO Cannon 5402 | -9/Exiles | Warned to stay clear of 0b10 Research branches 5450 | -9/Exiles | Found Army-in-a-Box 5460 | -9/Exiles | Found XL Autogun Array 6054 | -9/Exiles | Attacked by the Exiles 6135 | -9/Exiles | Build established: Mutant 6189 | -9/Exiles | Destroyed 8R-AWN 6832 | -9/Exiles | Destroyed EX-DEC 6838 | -9/Exiles | Destroyed EX-HEX 6847 | -9/Exiles | Destroyed EX-BIN 6968 | -9/Exiles | Build established: Scavenger-Mutant 7084 | -9/Exiles | Found Prototype Processor 7269 | -9/Exiles | Build established: Hauler-Mutant 7499 | -9/Exiles | Found Deploy-a-Sentry 7670 | -9/Exiles | Discovered new exit (range 10) 7692 | -9/Exiles | Stole four prototypes: Army-in-a-Box, YOLO Cannon, XL Autogun Array, Deploy-a-Sentry 7692 | -9/Exiles | Entered Mines 7813 | -8/Mines | Discovered new exit (range 8) 7947 | -8/Mines | Discovered new exit (range 8) 8287 | -8/Mines | Lost 4 parts (3n1w) 8398 | -8/Mines | Entered Materials 8398 | -8/Materials | Evolved 2 slots: Utility x1, Weapon x1 8707 | -8/Materials | Build established: Hauler-Tank 9085 | -8/Materials | Destroyed 7 combat bots 9128 | -8/Materials | Build established: Hauler-Gunner 9288 | -8/Materials | Discovered new exit (range 16) 10150 | -8/Materials | Discovered new exit (range 16) 10166 | -8/Materials | Identified exit to Storage 10212 | -8/Materials | Entered Factory 10212 | -7/Factory | Evolved 2 slots: Utility x2 10213 | -7/Factory | Identified Exp. Targeting Computer 10295 | -7/Factory | Fabricated Humpback (x1) 10321 | -7/Factory | Fabricated Humpback (x1) 10707 | -7/Factory | Local fabrication network quarantined 11012 | -7/Factory | First assault squad dispatched 11403 | -7/Factory | Identified exit to Lower Caves 11657 | -7/Factory | Entered Lower Caves 11959 | -7/Lower Caves | Learned Factory terminal intel 12221 | -7/Lower Caves | Acquired the password to a Derelict Tinkerer's latest research 12398 | -7/Lower Caves | Caught by Unaware searching for contraband prototypes 12539 | -7/Lower Caves | Caught by Unaware searching for contraband prototypes 12557 | -7/Lower Caves | Spotted 4P-10Z(f) 12557 | -7/Lower Caves | Spotted OO-0CU(f) 12558 | -7/Lower Caves | Encountered a Master Thief 12558 | -7/Lower Caves | Encountered a Master Thief 12561 | -7/Lower Caves | XL Autogun Array stolen by Master Thief 12563 | -7/Lower Caves | Army-in-a-Box stolen by Master Thief 12564 | -7/Lower Caves | Destroyed 4P-10Z(f) 12657 | -7/Lower Caves | Spotted Y4-V8U(f) 12659 | -7/Lower Caves | Encountered a Master Thief 12665 | -7/Lower Caves | Spotted D4-UUX(f) 12666 | -7/Lower Caves | Encountered a Master Thief 12668 | -7/Lower Caves | Destroyed D4-UUX(f) 12668 | -7/Lower Caves | Destroyed Y4-V8U(f) 12965 | -7/Lower Caves | Build established: Hauler-Mutant 13087 | -7/Lower Caves | Discovered new exit (range 7) 13099 | -7/Lower Caves | Entered another Lower Caves area 13300 | -7/Lower Caves | Spotted E6-810(f) 13301 | -7/Lower Caves | Encountered a Master Thief 13303 | -7/Lower Caves | Army-in-a-Box stolen by Master Thief 13304 | -7/Lower Caves | Spotted 2D-ST3(f) 13305 | -7/Lower Caves | Encountered a Master Thief 13305 | -7/Lower Caves | Deploy-a-Sentry stolen by Master Thief 13305 | -7/Lower Caves | Destroyed E6-810(f) 13316 | -7/Lower Caves | Destroyed 2D-ST3(f) 13487 | -7/Lower Caves | Spotted B-75 Beast 13578 | -7/Lower Caves | Destroyed B-75 Beast 13606 | -7/Lower Caves | Lost 4 parts (2n2w) 14955 | -7/Lower Caves | Build established: Hauler-Gunner 15047 | -7/Lower Caves | Spotted D8-TKY(f) 15048 | -7/Lower Caves | Spotted 09-9ST(f) 15049 | -7/Lower Caves | Encountered a Master Thief 15049 | -7/Lower Caves | Encountered a Master Thief 15054 | -7/Lower Caves | Deploy-a-Sentry stolen by Master Thief 15065 | -7/Lower Caves | YOLO Cannon stolen by Master Thief 15082 | -7/Lower Caves | Spotted C6-E6J(f) 15083 | -7/Lower Caves | Encountered a Master Thief 15090 | -7/Lower Caves | Army-in-a-Box stolen by Master Thief 15300 | -7/Lower Caves | Spotted MI-WS3(f) 15301 | -7/Lower Caves | Encountered a Master Thief 15305 | -7/Lower Caves | Cmb. Antigrav System stolen by Master Thief 15348 | -7/Lower Caves | Spotted OZ-HBL(f) 15350 | -7/Lower Caves | Encountered a Master Thief 15355 | -7/Lower Caves | Adv. Weapon Cycler stolen by Master Thief 15609 | -7/Lower Caves | Spotted US-Q2A(f) 15610 | -7/Lower Caves | Encountered a Master Thief 15621 | -7/Lower Caves | Exp. Heat Sink stolen by Master Thief 15774 | -7/Lower Caves | Lost 3 parts (1p1n1u) 15903 | -7/Lower Caves | Spotted DE-EO6(f) 15904 | -7/Lower Caves | Encountered a Master Thief 15904 | -7/Lower Caves | Spotted RG-GGW(f) 15905 | -7/Lower Caves | Encountered a Master Thief 15910 | -7/Lower Caves | Lgt. Fission Core stolen by Master Thief 15915 | -7/Lower Caves | Imp. Armor Integrity Analyzer stolen by Master Thief 16034 | -7/Lower Caves | Spotted NP-5D8(f) 16035 | -7/Lower Caves | Encountered a Master Thief 16041 | -7/Lower Caves | Lyr. Medium Armor Plating stolen by Master Thief 16059 | -7/Lower Caves | Spotted G3-P6S(f) 16060 | -7/Lower Caves | Encountered a Master Thief 16062 | -7/Lower Caves | Dirty Bomb Trap stolen by Master Thief 16108 | -7/Lower Caves | Spotted GI-3NB(f) 16109 | -7/Lower Caves | Encountered a Master Thief 16116 | -7/Lower Caves | Adv. Assault Cannon stolen by Master Thief 16125 | -7/Lower Caves | Self-destructed Last Messages --------------- 15882_ RD1ZWKNCBM,I,6T2YQA3VREO>H>E5 15898_ System corrupted: Heat flow error (+239). 15907_ Exp. Targeting Computer ripped off. 15909_ Dropped Hcp. Matter Pod. 15910_ Extracted 200 matter. 15910_ Lgt. Fission Core stolen. 15915_ Imp. Armor Integrity Analyzer stolen. 15923_ Acquired Hcp. Matter Pod. 15928_ The unstable cave ceiling collapses. 15965_ System corrupted: Heat flow error (+157). 16035_ NP-5D8(f): "Thought you could slip by me, eh?" 16041_ Lyr. Medium Armor Plating stolen. 16062_ Dirty Bomb Trap stolen. 16065_ System corrupted: Flak Gun targeting data glitched. 16089_ 9T,OF0PKTIGZDO1DR>GGG0NIEAYQAT4 16116_ Adv. Assault Cannon stolen. 16121_ C-30 ARC bursts open, deploying its payload. 16121_ G-50 Soldier unfolds itself. 16121_ G-47 Trooper unfolds itself. 16125_ Flak Gun destroyed. Map ----- +----------------------------------------------------+ | ??????????????????????????????????#### &##??####? | | ???????????????????????????????????## #### ## | | ???????????????????????????????????# # | | ??????????????????????????????????## # | | ?????????????????????????????????## ### # | | ?????????????????????????????????# ### # | | ?????????????????????????????????# ## | | ?????????????????????????????????# ##### & | | ????????????????????????????###### ##??## && | | ????????????????????????????# ##??## & | | ????????????????????????????# ##???# && | | ????????????????????????????### ###### # | | ??????????????????????????????## ### # | | ???????????????????????????????## ###### # | | ???????????????????????????????## ## ### | | ????#####????????????###??????## ### | | ???## ##??????????## ##?????# ###?# | | ??## ##?????????# #????## ###???## | | ??# & ###??????## #????# ##??????## | | ??# ##?????# #???# ##????????# | | ??#### ####?## #???######?????????# | | ?????# ### ### ##????????????????## | | ?????###?## ##??????????????## | | ??????????##### #########????### | | ???#######?#### [ g g #?#### ## | | ??##"""""###f !@ g % ### ##### | | ??#"; % ###### ## #### | | ??#" ### ##???# ## ### | | ??#" % ;; ## ##?# #???# | | ??# ;;## #####??## #???# #### | | ??#" " ## #??????# #???### ####??# | | ??## "### #??????# ##?## ##????# | | ???# ##?# #??????# ### #????# # | | ???# #??# #??????# #????# # | | #?## #??# ##??????## ##???# #" | | ### #??# #????????## ###???# ## "# | | ## #??# #?####????# ##????# ## "# | | # #??# ### ##???# #?????# ## | | ##??## ### ##??# ##?????# ## & | | ##????##### #??# #??????## ## | | ## #??###### #??## ???????####?# | | ### #### ## #????#######???????????# | | ## ##??????????????????????## | | ##????????????????????????## | | #### #??????????????????????????# | | ???###### ##### #?????????????????????????# # | | ????????######???###?????????????????????????##### | | ?????????????????????????????????????????????????? | | ?????????????????????????????????????????????????? | | ?????????????????????????????????????????????????? | +----------------------------------------------------+ Best States ------------- Heat Dissipation 48 Energy Generation 18 Energy Capacity 310 Matter Stores 433 Matter Capacity 500 Sight Range 22 Terrain Scan Density 10 Armor Coverage 375 Weapon Cycling 25 Evasion (%) 40 Targeting Accuracy 12 Recoil Reduction 3 Item Schematics ----------------- Hcp. Storage Unit | -10/Materials | Hacked Lrg. Storage Unit | -10/Materials | Hacked Humpback | -8/Materials | Scanalyzed Cmb. Antigrav System | -7/Factory | Scanalyzed Robot Schematics ------------------ O-16 Technician | -10/Materials | Hacked Fabricated ------------ Humpback | x1 | -7/Factory Humpback | x1 | -7/Factory Alien Tech Used ----------------- None Achievements -------------- None Challenges ------------ None Game ------ Seed DeuteriumResetBiocell Manual? 0 Play Time 01:24:08 Cumulative 513.2 hours Start 2020.09.23 @ 12:48:06 End 2020.09.23 @ 14:17:36 Sessions 1 Manual Loads 0 Difficulty Rogue Special Mode None Game No. 328 Rogue 328 Adventurer 0 Explorer 0 Win Type - Total 6 Types 4/0/1/0/1/0/0/0/0 Lore% 88 Gallery% 88 Achievement% 69 Wizard Run 0 Options --------- ASCII 0 Keyboard 0 Movement Mouse Keybinds 1 Fullscreen 2 Font 24/Smallcaps Map View 68x50 Tactical HUD 1 Map Filters NONE Filters NONE Steam 1 RUN: 321ecb00-2a87-4add-838f-42ef9412c971